[Event "EYCC Open-U12 2019"]
[Site "Bratislava"]
[Date "2019.08.09"]
[Round "8.41"]
[White "Ryabukhin, Roman"]
[Black "Paseka, Matyas"]
[Result "1/2-1/2"]
[ECO "D30"]
[WhiteElo "1445"]
[BlackElo "1917"]
[Annotator "NA"]
[PlyCount "102"]
[EventDate "2019.08.02"]
[EventType "swiss"]
[EventCountry "SVK"]
[SourceTitle "playchess.com"]
[Source "ChessBase"]
[SourceQuality "1"]
[TimeControl "40/5400+30:1800+30"]

1. d4 {[%emt 0:00:00]} d5 {[%emt 0:00:00]} 2. c4 {[%emt 0:00:00]} e6 {[%emt 0:00:00]} 3. Nf3 Nf6 {[%emt 0:00:00]} 4. g3 {[%emt 0:00:00]} Bb4+ {[%emt 0:00:17]} 5. Bd2 {[%emt 0:00:00]} Be7 {[%emt 0:00:09]} 6. Bg2 {[%emt 0:00:03]} O-O {[%emt 0:00:10]} 7. O-O {[%emt 0:00:17]} c6 {[%emt 0:00:22]} 8. Bc3 {[%emt 0:00:44]} dxc4 {[%emt 0:01:21]} 9. Ne5 {[%emt 0:00:39]} b5 {[%emt 0:03:24]} 10. Bxc6 {[%emt 0:01:16]} Nxc6 {[%emt 0:01:14]} 11. Nxc6 {[%emt 0:00:05]} Qc7 {[%emt 0:00:15]} 12. Nxe7+ {[%emt 0:00:34]} Qxe7 {[%emt 0:00:09]} 13. Qe1 {[%emt 0:01:39]} Rd8 {[%emt 0:03:07]} 14. a4 {[%emt 0:07:38]} Qb7 {[%emt 0:13:37]} 15. axb5 {[%emt 0:02:38]} Qxb5 {[%emt 0:00:14]} 16. Ra5 {[%emt 0:02:31]} Qd7 {[%emt 0:02:40]} 17. Nd2 {[%emt 0:05:44]} Bb7 {[%emt 0:02:37]} 18. f3 {[%emt 0:00:43]} Rdc8 {[%emt 0:11:26]} 19. e4 {[%emt 0:01:22]} a6 {[%emt 0:06:47]} 20. Qe3 {[%emt 0:01:32]} Ne8 {[%emt 0:08:48]} 21. Rg5 {[%emt 0:05:27]} f6 {[%emt 0:02:00]} 22. Rg4 {[%emt 0:03:50]} Nd6 {[%emt 0:11:00]} 23. d5 {[%emt 0:28:39]} e5 24. Rh4 Nb5 {[%emt 0:04:41]} 25. f4 {[%emt 0:02:09]} Nxc3 {[%emt 0:01:42]} 26. Qxc3 {[%emt 0:00:19]} exf4 {[%emt 0:11:21]} 27. Rhxf4 {[%emt 0:02:35]} Qc7 {[%emt 0:03:09]} 28. Rc1 {[%emt 0:05:00]} Qb6+ {[%emt 0:01:24]} 29. Kg2 {[%emt 0:02:54]} a5 {[%emt 0:03:12]} 30. Nxc4 {[%emt 0:02:39]} Rxc4 {[%emt 0:02:10]} 31. Qxc4 {[%emt 0:00:15]} Rc8 {[%emt 0:00:05]} 32. Qxc8+ {[%emt 0:01:55]} Bxc8 {[%emt 0:00:08]} 33. Rxc8+ {[%emt 0:00:07]} Kf7 {[%emt 0:00:07]} 34. Rf2 {[%emt 0:01:16]} Qd4 {[%emt 0:01:01]} 35. Re2 {[%emt 0:01:51]} g5 {[%emt 0:01:58]} 36. Rcc2 {[%emt 0:02:54]} Qe5 {[%emt 0:00:36]} 37. Rcd2 {[%emt 0:00:16]} Ke7 {[%emt 0:00:32]} 38. d6+ {[%emt 0:01:55]} Kd7 {[%emt 0:00:08]} 39. Rd5 {[%emt 0:02:06]} Qe6 {[%emt 0:03:28]} 40. Rd4 {[%emt 0:00:00]} Qb3 {[%emt 0:00:00]} 41. Red2 {[%emt 0:07:09]} g4 {[%emt 0:02:22]} 42. R4d3 {[%emt 0:01:06]} Qb7 {[%emt 0:01:50]} 43. Kf2 {[%emt 0:03:12]} Qb6+ {[%emt 0:03:34]} 44. Kf1 {[%emt 0:03:51]} Qb5 {[%emt 0:00:13]} 45. Ke1 {[%emt 0:00:53]} Qc4 {[%emt 0:06:48]} 46. Rc3 {[%emt 0:02:04]} Qxe4+ {[%emt 0:00:19]} 47. Kd1 {[%emt 0:00:20]} Qh1+ {[%emt 0:00:27]} 48. Kc2 {[%emt 0:00:14]} Qe4+ {[%emt 0:00:11]} 49. Kc1 {[%emt 0:00:35]} Qh1+ {[%emt 0:07:30]} 50. Rd1 {[%emt 0:03:23]} Qa8 {[%emt 0:00:12]} 51. Rc7+ {[%emt 0:00:15]} Kd8 {[%emt 0:00:06]} 1/2-1/2

[Event "EYCC Open-U12 2019"]
[Site "Bratislava"]
[Date "2019.08.09"]
[Round "8.42"]
[White "Isaksson, Max"]
[Black "Asllani, Dorian"]
[Result "0-1"]
[ECO "B31"]
[WhiteElo "1695"]
[BlackElo "1718"]
[Annotator "NA"]
[PlyCount "54"]
[EventDate "2019.08.02"]
[EventType "swiss"]
[EventCountry "SVK"]
[SourceTitle "playchess.com"]
[Source "ChessBase"]
[SourceQuality "1"]
[TimeControl "40/5400+30:1800+30"]

1. e4 {[%emt 0:00:00]} c5 {[%emt 0:00:00]} 2. Nf3 {[%emt 0:00:00]} Nc6 {[%emt 0:00:00]} 3. Bb5 {[%emt 0:00:00]} g6 {[%emt 0:00:00]} 4. Bxc6 {[%emt 0:00:17]} dxc6 {[%emt 0:00:10]} 5. h3 {[%emt 0:00:37]} e5 {[%emt 0:00:31]} 6. d3 {[%emt 0:00:17]} f6 {[%emt 0:00:25]} 7. Be3 {[%emt 0:02:25]} Be6 {[%emt 0:01:02]} 8. Nc3 {[%emt 0:06:11]} Nh6 {[%emt 0:01:50]} 9. Qd2 {[%emt 0:08:17]} Nf7 {[%emt 0:00:39]} 10. O-O {[%emt 0:08:36]} b6 {[%emt 0:01:17]} 11. a3 {[%emt 0:06:24]} a5 {[%emt 0:00:46]} 12. Qe2 {[%emt 0:08:57]} Bg7 {[%emt 0:01:31]} 13. Rfd1 {[%emt 0:05:09]} O-O {[%emt 0:01:41]} 14. Na4 {[%emt 0:09:07]} Rb8 {[%emt 0:04:35]} 15. Rab1 {[%emt 0:03:52]} f5 {[%emt 0:10:21]} 16. b4 {[%emt 0:05:25]} axb4 {[%emt 0:04:00]} 17. axb4 {[%emt 0:01:29]} cxb4 {[%emt 0:00:23]} 18. Rxb4 {[%emt 0:02:31]} c5 {[%emt 0:01:15]} 19. Rbb1 {[%emt 0:02:32]} f4 {[%emt 0:00:56]} 20. Bd2 {[%emt 0:02:07]} g5 {[%emt 0:00:49]} 21. Rb2 {[%emt 0:02:56]} Bd7 {[%emt 0:05:27]} 22. Nc3 {[%emt 0:00:23]} g4 {[%emt 0:00:11]} 23. hxg4 {[%emt 0:02:17]} Bxg4 {[%emt 0:00:06]} 24. Rdb1 {[%emt 0:01:20]} Ng5 {[%emt 0:00:31]} 25. Nd5 {[%emt 0:00:47]} Nxf3+ {[%emt 0:00:32]} 26. gxf3 {[%emt 0:00:15]} Bh3 {[%emt 0:00:09]} 27. Kh2 {[%emt 0:01:43]} Qh4 {[%emt 0:00:20]} 0-1

[Event "EYCC Open-U12 2019"]
[Site "Bratislava"]
[Date "2019.08.09"]
[Round "8.43"]
[White "De Reese, Elias"]
[Black "Shatil, Shir"]
[Result "1-0"]
[ECO "A40"]
[WhiteElo "1850"]
[BlackElo "1653"]
[Annotator "NA"]
[PlyCount "99"]
[EventDate "2019.08.02"]
[EventType "swiss"]
[EventCountry "SVK"]
[SourceTitle "playchess.com"]
[Source "ChessBase"]
[SourceQuality "1"]
[TimeControl "40/5400+30:1800+30"]

1. d4 {[%emt 0:00:00]} e6 {[%emt 0:00:00]} 2. Bf4 {[%emt 0:00:00]} Nf6 {[%emt 0:00:00]} 3. Nf3 {[%emt 0:00:00]} d5 {[%emt 0:00:00]} 4. e3 {[%emt 0:00:02]} c5 {[%emt 0:00:00]} 5. c3 {[%emt 0:00:15]} Nc6 {[%emt 0:00:00]} 6. Nbd2 {[%emt 0:00:56]} Bd6 {[%emt 0:00:00]} 7. Bg3 {[%emt 0:00:27]} O-O {[%emt 0:00:02]} 8. Bd3 {[%emt 0:02:50]} b6 {[%emt 0:00:06]} 9. Ne5 {[%emt 0:00:24]} Bb7 {[%emt 0:00:05]} 10. Ndf3 {[%emt 0:01:35]} Ne7 {[%emt 0:04:30]} 11. Qb1 {[%emt 0:05:47]} c4 {[%emt 0:05:42]} 12. Bc2 {[%emt 0:00:24]} b5 {[%emt 0:00:27]} 13. Bh4 {[%emt 0:04:49]} Ne4 {[%emt 0:01:13]} 14. O-O {[%emt 0:03:08]} f6 {[%emt 0:00:38]} 15. a4 {[%emt 0:08:47]} fxe5 {[%emt 0:01:29]} 16. dxe5 {[%emt 0:00:24]} Bc5 {[%emt 0:01:44]} 17. Bxe4 {[%emt 0:04:59]} dxe4 {[%emt 0:00:06]} 18. Ng5 {[%emt 0:01:24]} Qd5 {[%emt 0:11:19]} 19. Bg3 {[%emt 0:04:47]} a6 {[%emt 0:03:47]} 20. Rd1 {[%emt 0:06:31]} Qc6 {[%emt 0:00:17]} 21. b4 {[%emt 0:00:46]} Bb6 {[%emt 0:01:40]} 22. Rd6 {[%emt 0:01:43]} Qc8 {[%emt 0:03:49]} 23. Rxb6 {[%emt 0:04:11]} Bc6 {[%emt 0:10:10]} 24. axb5 {[%emt 0:06:21]} axb5 {[%emt 0:00:52]} 25. Rxa8 Qxa8 {[%emt 0:00:41]} 26. Nxe6 {[%emt 0:03:34]} Rc8 {[%emt 0:02:37]} 27. Nc5 {[%emt 0:02:24]} Qa3 {[%emt 0:01:49]} 28. Qe1 {[%emt 0:09:35]} Nd5 {[%emt 0:05:10]} 29. Ra6 {[%emt 0:00:08]} Qxc3 {[%emt 0:00:35]} 30. Qxc3 {[%emt 0:01:37]} Nxc3 {[%emt 0:00:02]} 31. Ra1 {[%emt 0:01:18]} Nd5 {[%emt 0:00:54]} 32. Rb1 {[%emt 0:02:41]} c3 {[%emt 0:05:26]} 33. Rc1 {[%emt 0:04:59]} Ra8 {[%emt 0:06:15]} 34. Kf1 {[%emt 0:03:34]} Ra2 {[%emt 0:03:37]} 35. Nxe4 {[%emt 0:06:41]} c2 {[%emt 0:02:11]} 36. Ke2 {[%emt 0:03:32]} Nxb4 {[%emt 0:04:56]} 37. Nc3 {[%emt 0:00:59]} Ra8 {[%emt 0:08:24]} 38. e6 {[%emt 0:02:27]} Na6 {[%emt 0:11:02]} 39. Rxc2 {[%emt 0:01:35]} b4 {[%emt 0:00:05]} 40. Nb1 {[%emt 0:00:00]} Bb5+ {[%emt 0:00:00]} 41. Kf3 {[%emt 0:12:11]} Bd3 {[%emt 0:09:30]} 42. Rb2 {[%emt 0:02:32]} g5 {[%emt 0:03:05]} 43. Bd6 {[%emt 0:03:17]} h5 {[%emt 0:05:49]} 44. e4 {[%emt 0:02:40]} Rc8 {[%emt 0:04:26]} 45. Ke3 {[%emt 0:00:47]} Bf1 {[%emt 0:01:43]} 46. g3 {[%emt 0:01:39]} Rc4 {[%emt 0:02:23]} 47. f4 {[%emt 0:02:34]} gxf4+ {[%emt 0:01:50]} 48. gxf4 {[%emt 0:00:17]} Rc6 {[%emt 0:00:54]} 49. e5 {[%emt 0:01:46]} Bc4 {[%emt 0:01:18]} 50. Rg2+ {[%emt 0:00:24]} 1-0

[Event "EYCC Open-U12 2019"]
[Site "Bratislava"]
[Date "2019.08.09"]
[Round "8.44"]
[White "Hagner, Bennet"]
[Black "Leal Prado, David Elias"]
[Result "1-0"]
[ECO "B19"]
[WhiteElo "1831"]
[BlackElo "1741"]
[Annotator "NA"]
[PlyCount "79"]
[EventDate "2019.08.02"]
[EventType "swiss"]
[EventCountry "SVK"]
[SourceTitle "playchess.com"]
[Source "ChessBase"]
[SourceQuality "1"]
[TimeControl "40/5400+30:1800+30"]

1. e4 {[%emt 0:00:00]} c6 {[%emt 0:00:00]} 2. d4 {[%emt 0:00:00]} d5 {[%emt 0:00:00]} 3. Nc3 {[%emt 0:00:58]} dxe4 {[%emt 0:00:00]} 4. Nxe4 {[%emt 0:00:05]} Bf5 {[%emt 0:00:05]} 5. Ng3 {[%emt 0:00:05]} Bg6 {[%emt 0:00:40]} 6. h4 {[%emt 0:00:07]} h6 {[%emt 0:00:09]} 7. Nf3 {[%emt 0:00:17]} Nd7 {[%emt 0:00:08]} 8. h5 {[%emt 0:00:16]} Bh7 {[%emt 0:00:13]} 9. Bd3 {[%emt 0:00:54]} Bxd3 {[%emt 0:00:14]} 10. Qxd3 {[%emt 0:00:05]} e6 {[%emt 0:00:30]} 11. Bd2 {[%emt 0:02:37]} Ngf6 {[%emt 0:00:37]} 12. O-O-O {[%emt 0:01:04]} Qc7 {[%emt 0:00:25]} 13. Kb1 {[%emt 0:13:08]} O-O-O {[%emt 0:00:32]} 14. c4 {[%emt 0:06:12]} c5 {[%emt 0:05:30]} 15. Be3 {[%emt 0:09:59]} cxd4 {[%emt 0:04:03]} 16. Bxd4 {[%emt 0:04:04]} Kb8 {[%emt 0:01:31]} 17. Be5 Nxe5 {[%emt 0:04:08]} 18. Qxd8+ {[%emt 0:01:43]} Qc8 {[%emt 0:05:33]} 19. Nxe5 {[%emt 0:01:36]} Bb4 {[%emt 0:01:01]} 20. Nxf7 {[%emt 0:00:59]} Rf8 {[%emt 0:04:33]} 21. Qxf8 {[%emt 0:00:35]} Bxf8 {[%emt 0:03:32]} 22. Rd8 {[%emt 0:00:05]} Bc5 {[%emt 0:00:30]} 23. f3 {[%emt 0:01:13]} Bb6 {[%emt 0:04:09]} 24. Rxc8+ {[%emt 0:00:11]} Kxc8 {[%emt 0:00:13]} 25. Ne4 {[%emt 0:00:19]} Nd7 {[%emt 0:03:24]} 26. c5 {[%emt 0:00:47]} Bc7 {[%emt 0:00:36]} 27. Ned6+ {[%emt 0:00:24]} Kb8 {[%emt 0:00:46]} 28. b4 {[%emt 0:00:11]} a6 {[%emt 0:00:18]} 29. Ne8 {[%emt 0:00:36]} Bf4 {[%emt 0:01:13]} 30. Nxg7 {[%emt 0:00:18]} e5 {[%emt 0:06:07]} 31. Rd1 {[%emt 0:01:31]} Nf6 {[%emt 0:02:29]} 32. Ne6 {[%emt 0:03:07]} b6 {[%emt 0:06:17]} 33. c6 {[%emt 0:00:38]} e4 {[%emt 0:00:05]} 34. Rd8+ {[%emt 0:00:18]} Ka7 {[%emt 0:00:25]} 35. Nxf4 {[%emt 0:00:09]} exf3 {[%emt 0:00:57]} 36. gxf3 {[%emt 0:00:27]} a5 {[%emt 0:00:52]} 37. b5 {[%emt 0:00:07]} Nd5 {[%emt 0:07:16]} 38. Nxd5 {[%emt 0:01:44]} a4 {[%emt 0:01:18]} 39. Nc7 {[%emt 0:00:07]} a3 40. Ra8# 1-0

[Event "EYCC Open-U12 2019"]
[Site "Bratislava"]
[Date "2019.08.09"]
[Round "8.45"]
[White "Franc, Borna"]
[Black "Knudsen, Philip Uhre"]
[Result "1-0"]
[ECO "A25"]
[WhiteElo "1826"]
[BlackElo "1590"]
[Annotator "NA"]
[PlyCount "29"]
[EventDate "2019.08.02"]
[EventType "swiss"]
[EventCountry "SVK"]
[SourceTitle "playchess.com"]
[Source "ChessBase"]
[SourceQuality "1"]
[TimeControl "40/5400+30:1800+30"]

1. c4 {[%emt 0:00:00]} e5 {[%emt 0:00:00]} 2. Nc3 {[%emt 0:00:00]} Nc6 {[%emt 0:02:56]} 3. g3 {[%emt 0:00:00]} Bc5 {[%emt 0:04:09]} 4. Bg2 {[%emt 0:00:19]} d6 {[%emt 0:01:35]} 5. Nf3 {[%emt 0:00:22]} f5 {[%emt 0:02:32]} 6. d3 {[%emt 0:01:17]} Nf6 {[%emt 0:01:47]} 7. O-O {[%emt 0:00:13]} O-O {[%emt 0:00:59]} 8. e3 {[%emt 0:00:20]} Qe8 {[%emt 0:13:39]} 9. a3 {[%emt 0:01:33]} a5 {[%emt 0:01:52]} 10. Nb5 {[%emt 0:04:55]} Bb6 {[%emt 0:04:27]} 11. d4 {[%emt 0:03:29]} Qf7 {[%emt 0:08:50]} 12. Qc2 {[%emt 0:13:02]} Nh5 {[%emt 0:11:46]} 13. Rb1 {[%emt 0:12:53]} f4 {[%emt 0:01:27]} 14. Ng5 {[%emt 0:06:52]} Qe7 {[%emt 0:04:57]} 15. Qxh7# 1-0

[Event "EYCC Open-U12 2019"]
[Site "Bratislava"]
[Date "2019.08.09"]
[Round "8.46"]
[White "Krawczyk, Flawian"]
[Black "Lazic, Emanuel"]
[Result "1-0"]
[ECO "B41"]
[WhiteElo "1848"]
[BlackElo "1449"]
[Annotator "NA"]
[PlyCount "53"]
[EventDate "2019.08.02"]
[EventType "swiss"]
[EventCountry "SVK"]
[SourceTitle "playchess.com"]
[Source "ChessBase"]
[SourceQuality "1"]
[TimeControl "40/5400+30:1800+30"]

1. e4 {[%emt 0:00:00]} c5 {[%emt 0:00:00]} 2. Nf3 {[%emt 0:00:00]} e6 {[%emt 0:00:00]} 3. d4 {[%emt 0:00:00]} cxd4 {[%emt 0:00:00]} 4. Nxd4 {[%emt 0:00:00]} a6 {[%emt 0:00:00]} 5. c4 {[%emt 0:00:00]} Nf6 {[%emt 0:00:06]} 6. Nc3 {[%emt 0:00:00]} Qc7 {[%emt 0:00:12]} 7. Be3 {[%emt 0:00:08]} b6 {[%emt 0:00:22]} 8. Be2 {[%emt 0:00:12]} Bb7 {[%emt 0:00:06]} 9. f3 {[%emt 0:00:07]} Be7 {[%emt 0:00:29]} 10. O-O {[%emt 0:00:17]} d6 {[%emt 0:00:34]} 11. Rc1 {[%emt 0:00:49]} Nbd7 {[%emt 0:00:17]} 12. b3 {[%emt 0:03:41]} Rc8 {[%emt 0:01:22]} 13. Qe1 {[%emt 0:04:08]} O-O {[%emt 0:01:08]} 14. Qf2 {[%emt 0:03:40]} Qb8 {[%emt 0:02:03]} 15. Rfd1 {[%emt 0:01:36]} Bd8 {[%emt 0:01:59]} 16. Bd3 {[%emt 0:10:09]} Bc7 {[%emt 0:07:23]} 17. Qh4 {[%emt 0:03:12]} Ne5 {[%emt 0:09:16]} 18. Bb1 {[%emt 0:03:39]} Ng6 {[%emt 0:02:04]} 19. Qh3 {[%emt 0:03:32]} Rfe8 {[%emt 0:08:29]} 20. Bg5 {[%emt 0:06:20]} Nd7 {[%emt 0:06:06]} 21. f4 {[%emt 0:14:40]} e5 {[%emt 0:24:14]} 22. Nf5 {[%emt 0:10:19]} Nxf4 {[%emt 0:13:59]} 23. Qg3 {[%emt 0:14:00]} Ng6 {[%emt 0:02:55]} 24. h4 {[%emt 0:01:00]} h5 {[%emt 0:06:01]} 25. Qf3 {[%emt 0:00:27]} f6 {[%emt 0:02:12]} 26. Qxh5 {[%emt 0:03:06]} Kf7 {[%emt 0:00:23]} 27. Qh7 {[%emt 0:01:22]} 1-0

[Event "EYCC Open-U12 2019"]
[Site "Bratislava"]
[Date "2019.08.09"]
[Round "8.47"]
[White "Mekhane, Adam"]
[Black "Zakarian, Dimitrios Levon"]
[Result "1-0"]
[ECO "B43"]
[WhiteElo "2040"]
[BlackElo "1580"]
[Annotator "NA"]
[PlyCount "49"]
[EventDate "2019.08.02"]
[EventType "swiss"]
[EventCountry "SVK"]
[SourceTitle "playchess.com"]
[Source "ChessBase"]
[SourceQuality "1"]
[TimeControl "40/5400+30:1800+30"]

1. e4 {[%emt 0:00:15]} c5 {[%emt 0:00:00]} 2. Nf3 {[%emt 0:00:03]} e6 {[%emt 0:00:00]} 3. d4 {[%emt 0:00:04]} cxd4 {[%emt 0:00:00]} 4. Nxd4 {[%emt 0:00:06]} a6 {[%emt 0:00:02]} 5. Nc3 {[%emt 0:00:04]} Qc7 {[%emt 0:00:15]} 6. Bd3 {[%emt 0:00:19]} Nf6 {[%emt 0:00:38]} 7. f4 {[%emt 0:00:40]} d6 {[%emt 0:00:49]} 8. Qe2 {[%emt 0:00:28]} Nbd7 {[%emt 0:01:16]} 9. g4 {[%emt 0:00:08]} Nc5 {[%emt 0:07:08]} 10. g5 {[%emt 0:02:20]} Nfd7 {[%emt 0:00:42]} 11. Bd2 {[%emt 0:10:14]} b5 {[%emt 0:03:04]} 12. f5 {[%emt 0:11:51]} Nxd3+ {[%emt 0:14:31]} 13. cxd3 {[%emt 0:01:54]} Nc5 {[%emt 0:01:15]} 14. b4 {[%emt 0:13:35]} Nb7 {[%emt 0:05:09]} 15. Rc1 {[%emt 0:06:20]} Qd7 {[%emt 0:03:46]} 16. O-O {[%emt 0:06:41]} Nd8 {[%emt 0:07:33]} 17. Nd5 {[%emt 0:09:19]} exd5 {[%emt 0:14:36]} 18. exd5+ {[%emt 0:00:34]} Be7 {[%emt 0:01:40]} 19. f6 {[%emt 0:06:23]} Qg4+ {[%emt 0:01:18]} 20. Qxg4 {[%emt 0:01:31]} Bxg4 {[%emt 0:00:30]} 21. fxe7 {[%emt 0:02:26]} Kxe7 {[%emt 0:02:12]} 22. Rc7+ {[%emt 0:00:16]} Kf8 {[%emt 0:00:37]} 23. Bf4 {[%emt 0:00:56]} h5 {[%emt 0:04:39]} 24. Bxd6+ {[%emt 0:10:23]} Kg8 {[%emt 0:00:20]} 25. Nc6 {[%emt 0:02:02]} 1-0

[Event "EYCC Open-U12 2019"]
[Site "Bratislava"]
[Date "2019.08.09"]
[Round "8.48"]
[White "Fizer, Marek"]
[Black "Stevik, Patrik"]
[Result "1-0"]
[ECO "B06"]
[WhiteElo "1624"]
[BlackElo "1941"]
[Annotator "NA"]
[PlyCount "103"]
[EventDate "2019.08.02"]
[EventType "swiss"]
[EventCountry "SVK"]
[SourceTitle "playchess.com"]
[Source "ChessBase"]
[SourceQuality "1"]
[TimeControl "40/5400+30:1800+30"]

1. e4 {[%emt 0:00:00]} g6 {[%emt 0:00:00]} 2. d4 {[%emt 0:00:00]} Bg7 {[%emt 0:00:00]} 3. Nf3 {[%emt 0:00:00]} d6 {[%emt 0:00:00]} 4. Bc4 {[%emt 0:00:01]} a6 {[%emt 0:00:06]} 5. Qe2 {[%emt 0:00:40]} b5 {[%emt 0:00:15]} 6. Bd3 {[%emt 0:01:20]} Bb7 {[%emt 0:00:16]} 7. O-O {[%emt 0:01:18]} Nd7 {[%emt 0:01:01]} 8. Nbd2 {[%emt 0:02:36]} c5 {[%emt 0:01:41]} 9. c3 {[%emt 0:00:25]} e6 {[%emt 0:06:21]} 10. a4 {[%emt 0:03:01]} b4 {[%emt 0:00:22]} 11. Nc4 {[%emt 0:01:22]} Qc7 {[%emt 0:00:39]} 12. e5 {[%emt 0:04:06]} dxe5 {[%emt 0:03:23]} 13. dxe5 {[%emt 0:00:19]} Ne7 {[%emt 0:06:02]} 14. Nd6+ {[%emt 0:01:00]} Kf8 {[%emt 0:01:06]} 15. Bf4 {[%emt 0:01:50]} Nd5 {[%emt 0:01:43]} 16. Bg3 {[%emt 0:00:14]} bxc3 {[%emt 0:01:24]} 17. bxc3 {[%emt 0:08:46]} Nxc3 {[%emt 0:00:19]} 18. Qb2 {[%emt 0:00:53]} Bxf3 {[%emt 0:00:43]} 19. Qxc3 {[%emt 0:16:44]} Bd5 {[%emt 0:03:00]} 20. Rac1 {[%emt 0:02:13]} h5 {[%emt 0:05:10]} 21. f4 {[%emt 0:02:43]} Qc6 {[%emt 0:02:17]} 22. Qc2 {[%emt 0:02:02]} h4 {[%emt 0:01:51]} 23. Be1 {[%emt 0:01:01]} Rb8 {[%emt 0:16:04]} 24. Bxg6 {[%emt 0:15:42]} h3 {[%emt 0:19:50]} 25. g3 {[%emt 0:00:58]} Bb3 {[%emt 0:04:53]} 26. Qe4 {[%emt 0:02:06]} Bd5 {[%emt 0:00:51]} 27. Qc2 {[%emt 0:00:32]} Bb3 {[%emt 0:03:31]} 28. Qe4 {[%emt 0:00:29]} Bd5 {[%emt 0:00:04]} 29. Qc2 {[%emt 0:00:23]} Rb3 {[%emt 0:01:39]} 30. Nxf7 {[%emt 0:03:04]} Qb6 {[%emt 0:07:57]} 31. a5 {[%emt 0:08:51]} Qb7 {[%emt 0:00:24]} 32. Nd6 {[%emt 0:02:37]} Qb8 {[%emt 0:02:21]} 33. Rb1 {[%emt 0:02:02]} Ke7 {[%emt 0:05:09]} 34. Rxb3 {[%emt 0:00:55]} Bxb3 {[%emt 0:00:01]} 35. Qd2 {[%emt 0:02:05]} Rf8 {[%emt 0:02:50]} 36. g4 {[%emt 0:05:01]} Nxe5 {[%emt 0:04:15]} 37. fxe5 {[%emt 0:01:04]} Bxe5 {[%emt 0:00:28]} 38. Bh4+ {[%emt 0:00:28]} Kd7 {[%emt 0:00:24]} 39. Rxf8 {[%emt 0:09:21]} Qxf8 {[%emt 0:00:01]} 40. Nf7+ {[%emt 0:00:00]} Bd4+ {[%emt 0:00:00]} 41. Bf2 {[%emt 0:01:00]} Qg7 {[%emt 0:02:05]} 42. Bxd4 {[%emt 0:02:12]} cxd4 {[%emt 0:01:58]} 43. Qb4 {[%emt 0:00:40]} Bd5 {[%emt 0:01:29]} 44. Qd6+ {[%emt 0:00:21]} Kc8 {[%emt 0:00:15]} 45. Qxa6+ {[%emt 0:00:27]} Kb8 {[%emt 0:01:25]} 46. Qb6+ {[%emt 0:01:06]} Ka8 {[%emt 0:01:24]} 47. Qd8+ {[%emt 0:00:23]} Kb7 {[%emt 0:01:04]} 48. Nd6+ {[%emt 0:01:13]} Ka7 {[%emt 0:00:43]} 49. Nb5+ {[%emt 0:00:46]} Kb7 {[%emt 0:00:19]} 50. Qb6+ {[%emt 0:00:15]} Kc8 {[%emt 0:00:23]} 51. Nd6+ {[%emt 0:00:09]} Kd7 {[%emt 0:00:12]} 52. Qa7+ 1-0

[Event "EYCC Open-U12 2019"]
[Site "Bratislava"]
[Date "2019.08.09"]
[Round "8.49"]
[White "Aasen, Fredrik"]
[Black "Culum, Sanjin"]
[Result "0-1"]
[ECO "A20"]
[WhiteElo "1606"]
[BlackElo "1912"]
[Annotator "NA"]
[PlyCount "58"]
[EventDate "2019.08.02"]
[EventType "swiss"]
[EventCountry "SVK"]
[SourceTitle "playchess.com"]
[Source "ChessBase"]
[SourceQuality "1"]
[TimeControl "40/5400+30:1800+30"]

1. c4 {[%emt 0:00:00]} e5 {[%emt 0:00:00]} 2. g3 {[%emt 0:00:00]} Nf6 {[%emt 0:00:00]} 3. Bg2 {[%emt 0:00:00]} Nc6 {[%emt 0:00:51]} 4. Nc3 {[%emt 0:00:24]} Bc5 {[%emt 0:01:06]} 5. a3 {[%emt 0:01:42]} a5 {[%emt 0:00:34]} 6. e3 {[%emt 0:01:43]} O-O {[%emt 0:01:05]} 7. Nge2 {[%emt 0:01:52]} Re8 {[%emt 0:00:27]} 8. d3 {[%emt 0:00:51]} d6 {[%emt 0:01:30]} 9. h3 {[%emt 0:02:15]} Bb6 {[%emt 0:07:21]} 10. b3 {[%emt 0:04:39]} Be6 {[%emt 0:00:24]} 11. O-O {[%emt 0:03:52]} d5 {[%emt 0:01:39]} 12. Bb2 {[%emt 0:08:19]} Qd7 {[%emt 0:01:14]} 13. Kh2 {[%emt 0:02:17]} Rad8 {[%emt 0:00:48]} 14. Qc2 {[%emt 0:10:06]} d4 {[%emt 0:03:35]} 15. exd4 {[%emt 0:05:59]} exd4 {[%emt 0:00:08]} 16. Na4 {[%emt 0:04:50]} Bf5 {[%emt 0:04:38]} 17. Rfe1 {[%emt 0:06:19]} Ne5 {[%emt 0:05:38]} 18. Nxb6 {[%emt 0:06:30]} cxb6 {[%emt 0:00:03]} 19. Rad1 {[%emt 0:01:08]} Bxh3 {[%emt 0:12:18]} 20. Bxh3 {[%emt 0:01:54]} Nf3+ {[%emt 0:00:02]} 21. Kg2 {[%emt 0:01:31]} Qc6 {[%emt 0:00:15]} 22. Kf1 {[%emt 0:07:25]} Nxe1 {[%emt 0:00:04]} 23. Kxe1 {[%emt 0:02:09]} Qf3 {[%emt 0:00:08]} 24. Bf1 {[%emt 0:06:10]} Ng4 {[%emt 0:00:13]} 25. Kd2 {[%emt 0:02:43]} Nxf2 {[%emt 0:00:38]} 26. Ra1 {[%emt 0:04:56]} Qe3+ {[%emt 0:00:19]} 27. Ke1 {[%emt 0:00:08]} Nxd3+ {[%emt 0:00:05]} 28. Kd1 {[%emt 0:00:15]} Nxb2+ {[%emt 0:00:06]} 29. Qxb2 {[%emt 0:00:15]} d3 {[%emt 0:00:13]} 0-1

[Event "EYCC Open-U12 2019"]
[Site "Bratislava"]
[Date "2019.08.09"]
[Round "8.50"]
[White "Kolani, Arjun"]
[Black "Rotunno, Flavio"]
[Result "1-0"]
[ECO "B39"]
[WhiteElo "1699"]
[BlackElo "1819"]
[Annotator "NA"]
[PlyCount "63"]
[EventDate "2019.08.02"]
[EventType "swiss"]
[EventCountry "SVK"]
[SourceTitle "playchess.com"]
[Source "ChessBase"]
[SourceQuality "1"]
[TimeControl "40/5400+30:1800+30"]

1. e4 {[%emt 0:00:00]} c5 {[%emt 0:00:00]} 2. Nf3 {[%emt 0:00:00]} Nc6 {[%emt 0:00:00]} 3. d4 {[%emt 0:00:00]} cxd4 {[%emt 0:00:00]} 4. Nxd4 {[%emt 0:00:05]} g6 {[%emt 0:00:00]} 5. c4 {[%emt 0:00:29]} Bg7 {[%emt 0:00:00]} 6. Be3 {[%emt 0:00:09]} Nf6 {[%emt 0:00:08]} 7. Nc3 {[%emt 0:00:14]} Ng4 {[%emt 0:00:12]} 8. Qxg4 {[%emt 0:00:27]} Nxd4 {[%emt 0:00:05]} 9. Qd1 {[%emt 0:00:38]} e5 {[%emt 0:00:05]} 10. Be2 {[%emt 0:07:10]} O-O {[%emt 0:03:56]} 11. O-O {[%emt 0:02:53]} d6 {[%emt 0:01:15]} 12. Qd2 {[%emt 0:06:06]} a6 {[%emt 0:05:42]} 13. Rac1 {[%emt 0:14:05]} Be6 {[%emt 0:03:32]} 14. Nd5 {[%emt 0:08:29]} Rc8 {[%emt 0:10:05]} 15. b3 {[%emt 0:04:43]} Bxd5 {[%emt 0:04:40]} 16. cxd5 {[%emt 0:02:50]} Qd7 {[%emt 0:02:36]} 17. Bd3 {[%emt 0:12:10]} f5 {[%emt 0:26:10]} 18. Bxd4 {[%emt 0:11:17]} exd4 {[%emt 0:00:20]} 19. exf5 {[%emt 0:01:12]} gxf5 {[%emt 0:01:22]} 20. Rxc8 {[%emt 0:02:08]} Rxc8 {[%emt 0:01:12]} 21. Qg5 {[%emt 0:05:49]} Rf8 {[%emt 0:04:15]} 22. Re1 {[%emt 0:01:45]} Rf6 {[%emt 0:01:08]} 23. Re6 {[%emt 0:03:19]} h6 {[%emt 0:02:34]} 24. Qh4 {[%emt 0:04:47]} Rxe6 {[%emt 0:04:06]} 25. dxe6 Qxe6 {[%emt 0:01:08]} 26. Qd8+ {[%emt 0:02:25]} Kh7 {[%emt 0:00:29]} 27. g4 {[%emt 0:00:44]} Bf6 {[%emt 0:09:58]} 28. Qf8 {[%emt 0:01:21]} Qe1+ {[%emt 0:07:26]} 29. Kg2 {[%emt 0:00:17]} Kg6 {[%emt 0:00:34]} 30. Bxf5+ {[%emt 0:00:50]} Kg5 {[%emt 0:00:08]} 31. h4+ {[%emt 0:01:22]} Kf4 {[%emt 0:00:19]} 32. Qxf6 {[%emt 0:00:28]} 1-0